bitfinex/quotes_BTCUSD_20250530
["timestamp","ask_amount","ask_price","bid_price","bid_amount"]
[1748614937454,0.02849397,105280.0,105270.0,0.1259948]
[1748614937662,0.74939462,105280.0,105270.0,0.1105948]
[1748614937903,0.74939462,105280.0,105270.0,0.005]
[1748614938580,1.48826697,105280.0,105270.0,0.002]
[1748614938788,1.89974697,105280.0,105270.0,0.004]
[1748614939257,0.20898596,105270.0,105260.0,4e-05]
[1748614939477,0.74941449,105270.0,105260.0,4e-05]
[1748614939691,0.52920498,105270.0,105260.0,4e-05]
[1748614939916,0.00949857,105270.0,105260.0,0.03028085]
[1748614940334,0.02849616,105270.0,105260.0,0.03028085]
[1748614940543,0.55942484,105280.0,105260.0,0.03028085]
[1748614940760,0.30024877,105290.0,105260.0,0.1366348]
[1748614940974,0.001,105270.0,105260.0,0.1209348]
[1748614941185,0.01899577,105280.0,105260.0,0.1209348]
[1748614941393,1.1703934,105290.0,105270.0,0.0164]
[1748614941394,0.97094268,105290.0,105270.0,0.0164]
[1748614941613,0.01899559,105280.0,105270.0,0.03094085]
[1748614941828,0.00949766,105280.0,105270.0,0.03094085]
[1748614942044,0.01899559,105280.0,105270.0,0.03094085]
[1748614942253,0.0379919,105280.0,105270.0,0.03094085]
[1748614942475,0.0094992,105270.0,105260.0,0.10849395]
[1748614942690,0.74941431,105270.0,105260.0,0.1066348]
[1748614942905,0.74941431,105270.0,105260.0,0.1056348]
[1748614943129,0.73991538,105270.0,105260.0,0.01458085]
[1748614943341,0.77181538,105270.0,105260.0,4e-05]
[1748614945065,0.77141538,105270.0,105260.0,0.00304]
[1748614946443,1.11141538,105270.0,105260.0,0.00304]
[1748614946677,1.18720525,105270.0,105260.0,0.00304]
[1748614947097,1.18720525,105270.0,105260.0,0.00204]
[1748614947310,1.11141538,105270.0,105260.0,0.00204]
[1748614947522,1.11241538,105270.0,105260.0,0.00204]
[1748614947950,1.50813538,105270.0,105260.0,0.00204]
[1748614948150,1.50813538,105270.0,105260.0,4e-05]
[1748614948359,1.09661538,105270.0,105260.0,4e-05]
[1748614950225,1.06159598,105270.0,105260.0,4e-05]
[1748614950653,0.001,105270.0,105260.0,0.12339395]
[1748614950867,0.001,105270.0,105260.0,0.1379348]
[1748614951636,0.03798893,105290.0,105270.0,0.04624085]
[1748614951844,0.03798893,105290.0,105270.0,0.1372948]
[1748614952081,0.01899406,105290.0,105270.0,0.1372948]
[1748614952321,0.03798893,105290.0,105270.0,0.1372948]
[1748614952731,0.02849136,105290.0,105270.0,0.1372948]
[1748614952925,0.03798884,105290.0,105270.0,0.1382948]
[1748614953156,0.02849136,105290.0,105270.0,0.1382948]
[1748614953332,0.03798884,105290.0,105270.0,0.1382948]
[1748614953565,0.03798884,105290.0,105270.0,0.14715934]
[1748614953710,0.00949766,105280.0,105270.0,0.14715934]
[1748614954116,0.01899442,105290.0,105270.0,0.14715934]
[1748614954555,0.00949766,105280.0,105270.0,0.14715934]
[1748614954766,0.01899541,105280.0,105270.0,0.14916144]
[1748614955179,0.01899541,105280.0,105270.0,0.15016122]
[1748614955406,0.74939444,105280.0,105270.0,0.01086649]
[1748614955638,0.74939444,105280.0,105270.0,0.01086734]
[1748614955841,0.73989642,105280.0,105270.0,0.002]
[1748614956043,0.73989642,105280.0,105270.0,0.01286753]
[1748614956582,0.73989642,105280.0,105270.0,0.01286995]
[1748614956789,0.73989642,105280.0,105270.0,0.004]
[1748614957268,0.73039813,105280.0,105270.0,0.012872]
[1748614958041,0.19946789,105280.0,105270.0,0.012872]
[1748614958393,0.19946789,105280.0,105270.0,0.004]
[1748614958596,0.19946789,105280.0,105270.0,0.01287506]
[1748614958799,0.0284947,105280.0,105270.0,0.01287506]
[1748614959010,0.22796278,105280.0,105270.0,0.01287506]
[1748614959219,0.0284947,105280.0,105270.0,0.01287506]
[1748614959422,0.01899577,105280.0,105270.0,0.01287506]
[1748614959670,0.02849388,105280.0,105270.0,0.02847495]
[1748614959997,0.01899568,105280.0,105270.0,0.02847495]
[1748614960298,0.02849379,105280.0,105270.0,0.02847604]
[1748614960512,0.22796251,105280.0,105270.0,0.02847604]
[1748614960968,0.0379919,105280.0,105270.0,0.0196]
[1748614961175,0.22796232,105280.0,105270.0,0.0196]
[1748614961807,0.20896637,105280.0,105270.0,0.0196]
[1748614962430,0.01899631,105280.0,105270.0,0.04467629]
[1748614962637,0.0284947,105280.0,105270.0,0.0358]
[1748614962845,0.02849479,105280.0,105270.0,0.0358]
[1748614963055,0.20896591,105280.0,105270.0,0.0358]
[1748614963276,0.03799218,105280.0,105270.0,0.0358]
[1748614963484,0.22796178,105280.0,105270.0,0.0358]
[1748614963927,0.02849379,105280.0,105270.0,0.0358]
[1748614964670,0.2089472,105290.0,105270.0,0.12685395]
[1748614964880,0.22794189,105290.0,105280.0,0.0162]
[1748614965300,0.19944877,105290.0,105280.0,0.0162]
[1748614965515,0.2184431,105290.0,105280.0,0.0162]
[1748614965724,0.2184431,105290.0,105280.0,0.01476]
[1748614965957,0.01899379,105290.0,105280.0,0.03106]
[1748614966171,0.00949586,105300.0,105280.0,0.2224948]
[1748614966380,0.01049676,105290.0,105280.0,0.2224948]
[1748614966591,0.01049685,105290.0,105280.0,0.2224948]
[1748614966800,0.01049676,105290.0,105280.0,0.2224948]
[1748614967009,0.001,105290.0,105280.0,0.2224948]
[1748614967447,0.56891494,105310.0,105290.0,0.01454085]
[1748614967654,0.56891494,105310.0,105290.0,0.1055948]
[1748614967655,0.55941926,105310.0,105290.0,0.1055948]
[1748614967868,0.03750361,105320.0,105300.0,0.09105395]
[1748614968082,0.76830405,105320.0,105300.0,0.09105395]
[1748614968306,0.5594189,105310.0,105300.0,0.1055948]
[1748614968538,0.01898839,105320.0,105300.0,0.1055948]
[1748614968753,0.01898839,105320.0,105300.0,0.1365948]
[1748614968754,0.5594171,105320.0,105300.0,0.1365948]
[1748614968969,0.57840621,105320.0,105300.0,0.1365948]
[1748614969183,0.5594171,105320.0,105300.0,0.1425948]
[1748614969614,0.57840657,105320.0,105300.0,0.1425948]
[1748614970051,0.55941701,105320.0,105300.0,0.1425948]
[1748614970481,0.57840612,105320.0,105300.0,0.1425948]
[1748614970703,0.1989853,105350.0,105320.0,0.04704085]
[1748614970963,0.00949316,105330.0,105320.0,0.1380948]
[1748614971200,0.01898641,105330.0,105320.0,0.1380948]
[1748614971418,0.01898641,105330.0,105310.0,0.12363929]
[1748614971419,0.01898875,105320.0,105310.0,0.01454085]
[1748614971644,0.54992268,105320.0,105310.0,0.1055948]
[1748614971861,0.76830402,105320.0,105310.0,0.01454085]
[1748614972076,0.75880987,105320.0,105310.0,0.01454085]
[1748614972572,0.75880987,105320.0,105290.0,0.02974085]
[1748614972573,0.01899037,105310.0,105290.0,0.02974085]
[1748614972789,0.54992358,105310.0,105300.0,0.1055948]
[1748614973225,0.54992367,105310.0,105300.0,0.1055948]
[1748614973451,0.54992367,105310.0,105290.0,0.0152]
[1748614973452,0.02848893,105300.0,105290.0,0.0152]
[1748614973669,0.75885089,105300.0,105290.0,0.09105395]
[1748614973890,0.20894688,105290.0,105270.0,0.04524175]
[1748614974107,0.01899433,105290.0,105270.0,0.1211957]
[1748614974322,0.56891953,105290.0,105270.0,0.1211957]
[1748614974539,0.57841692,105290.0,105270.0,0.1211957]
[1748614974756,0.00949766,105280.0,105270.0,0.1058957]
[1748614974982,0.74937678,105290.0,105270.0,0.1058957]
[1748614975193,0.00949766,105280.0,105270.0,0.1105948]
[1748614975404,0.75037678,105290.0,105270.0,0.1105948]
[1748614975405,0.56992061,105290.0,105270.0,0.09905395]
[1748614975611,0.57841818,105290.0,105270.0,0.09405395]
[1748614975817,0.76837011,105290.0,105270.0,0.09405395]
[1748614975955,0.00949766,105280.0,105270.0,0.1085948]
[1748614976198,0.01899541,105280.0,105270.0,0.1085948]
[1748614976400,0.73989606,105280.0,105270.0,0.01754085]
[1748614976610,0.56892277,105280.0,105270.0,0.01754085]
[1748614976815,0.55942448,105280.0,105270.0,0.01954085]
[1748614977177,0.01899595,105280.0,105270.0,0.01754085]
[1748614977372,0.56892259,105280.0,105270.0,0.01454085]
[1748614977583,0.58791927,105280.0,105270.0,0.01954085]
[1748614977804,0.76839039,105280.0,105270.0,0.003]
[1748614978009,0.76539462,105280.0,105270.0,0.0088641]
[1748614978262,0.02849652,105270.0,105260.0,4e-05]
[1748614978435,0.02849652,105270.0,105260.0,0.09996293]
[1748614978436,0.58792363,105270.0,105260.0,0.09996293]
[1748614978665,0.57842425,105270.0,105260.0,0.00890898]
[1748614979295,0.03799572,105270.0,105260.0,0.00890903]
[1748614979505,0.21848408,105270.0,105260.0,0.00890902]
[1748614979710,0.57842407,105270.0,105260.0,4e-05]
[1748614979905,0.57842416,105270.0,105260.0,0.00890919]
[1748614980109,0.57842416,105270.0,105260.0,0.01090919]
[1748614980330,0.56892505,105270.0,105260.0,0.01090919]
[1748614980537,0.03799563,105270.0,105260.0,0.00204]
[1748614980766,0.21848516,105270.0,105260.0,0.01390878]
[1748614981008,0.78131467,105270.0,105260.0,0.00504]
[1748614981206,0.88191467,105270.0,105260.0,0.00504]
[1748614981417,0.97296862,105270.0,105260.0,0.00504]
[1748614981846,1.31296862,105270.0,105260.0,0.00504]
[1748614982051,1.33553197,105270.0,105260.0,0.00204]
[1748614982262,1.31296862,105270.0,105260.0,0.00204]
[1748614982470,1.31496862,105270.0,105260.0,0.00204]
[1748614982883,0.77454009,105270.0,105260.0,0.00204]
[1748614983487,1.31496862,105270.0,105260.0,4e-05]
[1748614983698,1.31796862,105270.0,105260.0,4e-05]
[1748614984076,0.3724,105260.0,105250.0,0.00172]
[1748614984287,0.57192475,105250.0,105240.0,0.02867399]
[1748614984518,1.20340723,105250.0,105240.0,0.02867399]
[1748614984721,1.62504723,105250.0,105240.0,0.02867399]
[1748614984850,1.0846187,105250.0,105240.0,0.02867399]
[1748614985082,1.62504723,105250.0,105240.0,0.02867399]
[1748614985894,0.54902566,105250.0,105240.0,0.02867399]
[1748614986192,1.21540814,105250.0,105240.0,0.02867399]
[1748614987415,1.21140814,105250.0,105240.0,0.02867399]
[1748614987634,1.21440814,105250.0,105240.0,0.02867399]
[1748614987851,1.21240814,105250.0,105240.0,0.02867399]
[1748614988285,1.21340814,105250.0,105240.0,0.02867399]
[1748614988961,1.75383667,105250.0,105240.0,0.02867399]
[1748614989886,1.75383667,105250.0,105210.0,6e-05]
[1748614989887,0.78201361,105220.0,105210.0,6e-05]
[1748614990111,1.18978756,105220.0,105210.0,6e-05]
[1748614990760,1.09873361,105220.0,105210.0,6e-05]
[1748614990976,1.08243361,105220.0,105210.0,6e-05]
[1748614991236,1.09783361,105220.0,105210.0,6e-05]
[1748614991461,0.99045903,105220.0,105210.0,6e-05]
[1748614991678,1.53188756,105220.0,105210.0,6e-05]
[1748614994169,1.51832756,105220.0,105210.0,6e-05]
[1748614994593,1.56828756,105220.0,105210.0,6e-05]
[1748614995047,1.58378756,105220.0,105210.0,6e-05]
[1748614995835,1.26526756,105220.0,105210.0,6e-05]
[1748614996042,1.68810756,105220.0,105210.0,6e-05]
[1748614997880,1.36958756,105220.0,105210.0,6e-05]
[1748614998081,1.67256756,105220.0,105210.0,6e-05]
[1748614999761,1.55172756,105220.0,105210.0,6e-05]
[1748614999975,0.80251361,105220.0,105210.0,6e-05]
[1748615000412,0.07200661,105220.0,105210.0,0.01556]
[1748615000623,0.08151032,105220.0,105210.0,0.03186]
[1748615000831,0.81201678,105220.0,105210.0,0.03186]
[1748615001042,0.57193876,105220.0,105210.0,0.03186]
[1748615001258,0.01250326,105220.0,105210.0,0.12291395]
[1748615001490,0.23109223,105220.0,105210.0,0.12291395]
[1748615001714,0.77152076,105220.0,105210.0,0.12291395]
[1748615001920,0.75251406,105220.0,105210.0,0.10661395]
[1748615003274,0.75051406,105220.0,105210.0,0.10621395]
[1748615003483,0.74951406,105220.0,105210.0,0.10621395]
[1748615003693,0.74951406,105220.0,105210.0,0.10821395]
[1748615004382,0.19006413,105230.0,105210.0,0.12451395]
[1748615004592,0.56893633,105230.0,105220.0,0.0151]
[1748615004838,0.76849918,105230.0,105220.0,0.0151]
[1748615005058,0.74949419,105230.0,105220.0,0.0151]
[1748615006190,0.19958164,105220.0,105210.0,0.12491395]
[1748615006454,0.74001017,105220.0,105210.0,0.09111395]
[1748615006679,0.74001017,105220.0,105210.0,0.09211395]
[1748615006900,0.01900733,105220.0,105210.0,0.10881395]
[1748615007125,0.01900733,105220.0,105210.0,0.12301395]
[1748615007348,0.01900733,105220.0,105210.0,0.12401395]
[1748615007349,0.20908526,105220.0,105210.0,0.12401395]
[1748615007571,0.02851122,105220.0,105210.0,0.12501395]
[1748615007790,0.01900733,105220.0,105210.0,0.12501395]
[1748615008052,0.21858915,105220.0,105210.0,0.12501395]
[1748615008497,0.01900733,105220.0,105210.0,0.12501395]
[1748615008717,0.19956267,105230.0,105210.0,0.12501395]
[1748615008945,0.74949468,105230.0,105220.0,0.0161]
[1748615010012,0.20908499,105220.0,105210.0,0.09211395]
[1748615010276,0.74951397,105220.0,105210.0,6e-05]
[1748615010698,0.74001035,105220.0,105210.0,6e-05]
[1748615010906,0.74001035,105220.0,105210.0,0.00106]
[1748615011114,1.05637035,105220.0,105210.0,0.00106]
[1748615011328,1.05637035,105220.0,105210.0,0.00992615]
[1748615011773,1.05637035,105220.0,105210.0,0.01092703]
[1748615011984,1.07537723,105220.0,105210.0,0.02642969]
[1748615012195,1.06587379,105220.0,105210.0,0.02542969]
[1748615012400,1.06587379,105220.0,105210.0,0.01656]
[1748615012606,1.05637026,105220.0,105210.0,0.01656]
[1748615013433,1.39637026,105220.0,105210.0,0.01756]
[1748615013843,0.53958173,105220.0,105210.0,0.01756]
[1748615014023,1.09901768,105220.0,105210.0,0.01756]
[1748615014292,0.75901768,105220.0,105210.0,0.01756]
[1748615014699,0.74001035,105220.0,105210.0,0.01756]
[1748615015321,0.19958182,105220.0,105210.0,0.03386]
[1748615015553,0.02851032,105220.0,105210.0,0.12461395]
[1748615015763,0.00950317,105220.0,105210.0,0.12461395]
[1748615015980,0.55943514,105220.0,105210.0,0.12461395]
[1748615016387,0.5499317,105220.0,105210.0,0.12461395]
[1748615016813,0.00950317,105220.0,105210.0,0.12461395]
[1748615017020,0.02851005,105220.0,105210.0,0.12461395]
[1748615017235,0.75899713,105230.0,105220.0,0.0152]
[1748615017444,0.75899713,105230.0,105220.0,0.12285395]
[1748615017445,0.21856748,105230.0,105220.0,0.12285395]
[1748615017648,0.03801061,105230.0,105220.0,0.12285395]
[1748615017918,0.56893615,105230.0,105220.0,0.12285395]
[1748615018130,0.56893606,105230.0,105220.0,0.12285395]
[1748615018342,0.02850753,105230.0,105220.0,0.12285395]
[1748615019213,0.00950145,105240.0,105230.0,0.0151]
[1748615019440,0.02850498,105240.0,105230.0,0.10615395]
[1748615019684,0.01900299,105240.0,105230.0,0.10615395]
[1748615019888,0.55943152,105240.0,105230.0,0.10615395]
[1748615020317,0.54042853,105240.0,105230.0,0.10615395]
[1748615020525,0.55943134,105240.0,105230.0,0.10715395]
[1748615020752,0.54042853,105240.0,105230.0,0.10715395]
[1748615020965,0.54042853,105240.0,105230.0,0.1216948]
[1748615021189,0.54042853,105240.0,105230.0,0.1226948]
[1748615021400,0.54992908,105250.0,105230.0,0.1392948]
[1748615021617,0.55942972,105250.0,105230.0,0.1392948]
[1748615021811,0.57843181,105250.0,105230.0,0.1392948]
[1748615022077,0.57843172,105250.0,105230.0,0.1392948]
[1748615023825,0.5499271,105270.0,105250.0,0.1359948]
[1748615024035,0.35899921,105260.0,105250.0,0.1359948]
[1748615024244,0.34949947,105260.0,105250.0,0.1359948]
[1748615024462,0.35899921,105260.0,105250.0,0.1359948]
[1748615024687,0.36849904,105260.0,105250.0,0.1359948]
[1748615024904,0.91842749,105260.0,105250.0,0.1359948]
[1748615025589,0.90042774,105260.0,105250.0,0.1359948]
[1748615025808,0.36099921,105260.0,105250.0,0.1359948]
[1748615026030,0.36849913,105260.0,105250.0,0.1359948]
[1748615026454,0.35899912,105260.0,105250.0,0.1399948]
[1748615026663,0.34,105260.0,105250.0,0.1399948]
[1748615028417,0.0189955,105280.0,105260.0,0.0312]
[1748615028645,0.57842034,105280.0,105260.0,0.12225395]
[1748615029067,0.37799181,105280.0,105260.0,0.10645395]
[1748615029273,0.00949866,105270.0,105260.0,0.10645395]
[1748615029511,0.91842107,105280.0,105260.0,0.10645395]
[1748615029733,0.54042853,105270.0,105260.0,0.10745395]
[1748615029944,0.5499271,105270.0,105260.0,0.001]
[1748615030156,0.56892469,105270.0,105250.0,0.02974085]
[1748615030372,0.56892469,105270.0,105250.0,0.1363948]
[1748615030586,0.03799572,105270.0,105260.0,0.001]
[1748615030799,0.58792354,105270.0,105260.0,0.001]
[1748615031007,0.57842425,105270.0,105260.0,0.001]
[1748615031635,0.58792363,105270.0,105260.0,0.001]
[1748615031854,0.58792354,105270.0,105250.0,0.1207948]
[1748615032066,0.58792354,105270.0,105250.0,0.1227948]
[1748615032067,0.00949947,105260.0,105250.0,0.1227948]
[1748615032288,0.58792417,105270.0,105250.0,0.1227948]
[1748615032968,0.58192809,105260.0,105250.0,0.002]
[1748615033251,0.58192809,105260.0,105230.0,0.0164]
[1748615033252,0.0190011,105250.0,105230.0,0.0164]
[1748615033497,0.04149965,105260.0,105250.0,0.002]
[1748615033706,0.04149965,105260.0,105240.0,0.09105395]
[1748615033707,0.05099957,105260.0,105240.0,0.09105395]
[1748615033921,0.02850219,105250.0,105240.0,0.09105395]
[1748615034134,0.06050003,105260.0,105250.0,0.002]
[1748615034348,0.23410573,105260.0,105250.0,0.002]
[1748615034582,0.77453426,105260.0,105250.0,0.002]
[1748615035226,0.76503452,105260.0,105250.0,0.001]
[1748615035445,0.78153452,105260.0,105250.0,0.001]
[1748615035662,0.78153452,105260.0,105210.0,6e-05]
[1748615035663,0.19007615,105230.0,105210.0,6e-05]
[1748615035877,0.74000731,105230.0,105210.0,0.09111395]
[1748615036101,0.00950326,105220.0,105210.0,0.09111395]
[1748615036313,0.0190067,105220.0,105210.0,0.09111395]
[1748615036524,0.02850987,105220.0,105210.0,0.09111395]
[1748615036738,0.02850987,105220.0,105210.0,0.19603395]
[1748615037193,0.02850978,105220.0,105210.0,0.19603395]
[1748615037406,0.04851693,105220.0,105210.0,0.19903395]
[1748615038064,0.22909232,105220.0,105210.0,0.09411395]
[1748615038274,0.22909232,105220.0,105210.0,0.00306]
[1748615038275,1.09699406,105220.0,105210.0,0.00306]
[1748615038495,1.43699406,105220.0,105210.0,0.00306]
[1748615038960,1.65265766,105210.0,105200.0,0.0481951]
[1748615039191,0.20920307,105170.0,105150.0,0.10496]
[1748615039407,0.00950877,105160.0,105150.0,0.10496]
[1748615039636,0.02852631,105160.0,105150.0,0.09109395]
[1748615040082,0.03803553,105160.0,105150.0,0.19601395]
[1748615040297,0.03803535,105160.0,105150.0,0.19601395]
[1748615040511,0.03803535,105160.0,105150.0,0.10594873]
[1748615040693,0.01901727,105160.0,105150.0,0.20201395]
[1748615040931,0.01050823,105170.0,105150.0,0.21086875]
[1748615041156,0.001,105170.0,105160.0,0.09105395]
[1748615041367,0.001,105170.0,105160.0,0.58574636]
[1748615041586,0.001,105170.0,105160.0,0.41574868]
[1748615041802,0.001,105170.0,105160.0,0.8173748]
[1748615042246,0.0380255,105190.0,105170.0,0.01454085]
[1748615042464,0.21865182,105190.0,105180.0,0.09105395]
[1748615042616,0.20914549,105190.0,105180.0,0.19597395]
[1748615043033,0.00950597,105190.0,105180.0,0.19597395]
[1748615043233,0.03802487,105190.0,105180.0,0.19597395]
[1748615043432,0.03902487,105190.0,105180.0,0.19597395]
[1748615043618,0.03902478,105190.0,105180.0,0.19597395]
[1748615043828,0.00950489,105200.0,105180.0,0.21107395]
[1748615044029,0.1976417,105200.0,105180.0,0.21107395]
[1748615044235,0.002,105190.0,105180.0,0.2256148]
[1748615044644,0.002,105190.0,105180.0,3.70698383]
[1748615044854,0.002,105190.0,105180.0,3.73550489]
[1748615045057,0.006,105190.0,105180.0,3.71749106]
[1748615045262,0.004,105190.0,105180.0,3.73650489]
[1748615045498,0.00950407,105210.0,105190.0,0.38644085]
[1748615045701,0.0285105,105220.0,105200.0,0.09105395]
[1748615045923,0.02851041,105220.0,105210.0,0.10292]
[1748615046121,0.02851041,105220.0,105210.0,0.19397395]
[1748615046122,0.03801412,105220.0,105210.0,0.19397395]
[1748615046535,0.02851023,105220.0,105210.0,0.19397395]
[1748615046741,0.00950326,105220.0,105210.0,0.19397395]
[1748615046953,0.02851032,105220.0,105210.0,0.19397395]
[1748615047281,0.02951032,105220.0,105210.0,0.19397395]
[1748615047467,0.0200067,105220.0,105210.0,0.19397395]
[1748615047681,0.02951032,105220.0,105210.0,0.19397395]
[1748615047883,0.0200067,105220.0,105210.0,0.19397395]
[1748615048086,0.02951032,105220.0,105210.0,0.19397395]
[1748615048507,0.02851032,105220.0,105210.0,0.19497395]
[1748615048711,0.02851032,105220.0,105210.0,0.19597395]
[1748615048919,0.02851032,105220.0,105210.0,0.09305395]
[1748615049112,0.0190067,105220.0,105210.0,0.09305395]
[1748615049322,0.02851032,105220.0,105210.0,0.19597395]
[1748615049531,0.20904494,105240.0,105220.0,0.01454085]
[1748615049738,0.22804884,105240.0,105220.0,0.1055948]
[1748615049949,0.35176689,105240.0,105220.0,0.1055948]
[1748615050153,0.21854822,105240.0,105220.0,0.1055948]
[1748615050365,0.00950236,105230.0,105220.0,0.1055948]
[1748615050571,0.00950227,105230.0,105220.0,0.1055948]
[1748615050788,0.21856748,105230.0,105220.0,0.09105395]
[1748615050989,0.00950317,105220.0,105210.0,0.10388]
[1748615051195,0.21856839,105230.0,105210.0,0.19493395]
[1748615051399,0.02850825,105230.0,105210.0,0.19493395]
[1748615051589,0.01900535,105230.0,105210.0,0.19493395]
[1748615051808,0.21856911,105230.0,105210.0,0.19493395]
[1748615051996,0.00950317,105220.0,105210.0,0.19493395]
[1748615052255,0.00950308,105220.0,105210.0,0.19393395]
[1748615052465,0.01900625,105220.0,105210.0,0.19493395]
[1748615052944,0.0285096,105220.0,105210.0,0.09105395]
[1748615053185,0.0285105,105220.0,105210.0,0.19393395]
[1748615053460,0.0285105,105220.0,105210.0,0.19493395]
[1748615053461,0.01900688,105220.0,105210.0,0.19493395]
[1748615053698,0.73048896,105230.0,105210.0,0.19593395]
[1748615053699,0.01900499,105230.0,105210.0,0.19593395]
[1748615053945,0.01900499,105230.0,105220.0,0.09105395]
[1748615054168,0.01900661,105220.0,105210.0,0.002]
[1748615054405,0.00950317,105220.0,105210.0,0.19593395]
[1748615054633,0.00950308,105220.0,105210.0,0.19593395]
[1748615054855,0.21856838,105230.0,105210.0,0.19593395]
[1748615055080,0.21856838,105230.0,105210.0,0.19493395]
[1748615055309,0.21856838,105230.0,105210.0,0.09305395]
[1748615055521,0.00950317,105220.0,105210.0,0.19593395]
[1748615055735,0.00950308,105220.0,105210.0,0.19593395]
[1748615055993,0.00950308,105220.0,105210.0,0.19493395]
[1748615056461,0.01900544,105230.0,105210.0,0.19393395]
[1748615056679,0.01900544,105230.0,105210.0,0.19493395]
[1748615056896,0.01900544,105230.0,105210.0,0.19593395]
[1748615057109,0.21856925,105230.0,105210.0,0.19593395]
[1748615057539,0.01900544,105230.0,105210.0,0.19493395]
[1748615057755,0.02850843,105230.0,105210.0,0.09205395]
[1748615057963,0.01900499,105230.0,105210.0,0.19493395]
[1748615058180,0.54664606,105240.0,105210.0,0.19493395]
[1748615058395,0.03420281,105240.0,105220.0,0.09105395]
[1748615058617,0.34668263,105240.0,105220.0,0.09105395]
[1748615058827,0.37518798,105240.0,105220.0,0.09105395]
[1748615059492,0.37618798,105240.0,105220.0,0.09105395]
[1748615059758,0.00950218,105230.0,105220.0,0.09105395]
[1748615059969,0.00950218,105230.0,105210.0,0.11742085]
[1748615059970,0.00950308,105220.0,105210.0,0.11742085]
[1748615060181,0.01900643,105220.0,105210.0,0.2084748]
[1748615060631,0.01900643,105220.0,105210.0,0.2242748]
[1748615060851,0.01900643,105220.0,105210.0,0.2084748]
[1748615061079,0.01900643,105220.0,105210.0,0.1055948]
[1748615061304,0.03801358,105220.0,105210.0,0.2094748]
[1748615061518,0.02850987,105220.0,105210.0,0.2094748]
[1748615061726,0.01900634,105220.0,105210.0,0.2094748]
[1748615061952,0.02850825,105230.0,105210.0,0.2094748]
[1748615062161,0.03801034,105230.0,105210.0,0.2104748]
[1748615062922,0.00950326,105220.0,105210.0,0.2104748]
[1748615063180,0.00950317,105220.0,105210.0,0.2084748]
[1748615063415,0.00950317,105220.0,105210.0,0.2094748]
[1748615063722,0.01900652,105220.0,105210.0,0.2094748]
[1748615063898,0.00950317,105220.0,105210.0,0.2094748]
[1748615064114,0.00950317,105220.0,105210.0,0.2084748]
[1748615064325,0.00950317,105220.0,105210.0,0.2104748]
[1748615064754,0.21856981,105230.0,105210.0,0.2094748]
[1748615065192,0.01900553,105230.0,105210.0,0.2094748]
[1748615065403,0.0285078,105230.0,105210.0,0.2104748]
[1748615065614,0.01900499,105230.0,105210.0,0.2084748]
[1748615065829,0.00950317,105220.0,105210.0,0.2094748]
[1748615066040,0.21856841,105230.0,105210.0,0.2104748]
[1748615066273,0.01900499,105230.0,105210.0,0.2104748]
[1748615066490,0.02850744,105230.0,105220.0,0.09105395]
[1748615066736,0.01900481,105230.0,105220.0,0.09105395]
[1748615066954,0.23416766,105230.0,105220.0,0.19393395]
[1748615067173,0.23416766,105230.0,105220.0,0.10288]
[1748615067174,0.22466521,105230.0,105220.0,0.10288]
[1748615067387,0.00950308,105220.0,105210.0,0.11742085]
[1748615067660,0.00950398,105210.0,105200.0,0.02984085]
[1748615067874,0.01900715,105220.0,105210.0,0.10288]
[1748615068087,0.01900715,105220.0,105210.0,0.19493395]
[1748615068723,0.01900715,105220.0,105210.0,0.19393395]
[1748615071088,0.00950218,105230.0,105210.0,0.21193395]
[1748615071301,0.01900463,105230.0,105210.0,0.21093395]
[1748615072180,0.03801007,105230.0,105210.0,0.21093395]
[1748615072401,0.233668,105230.0,105210.0,0.09205395]
[1748615072607,0.06871016,105230.0,105210.0,0.19493395]
[1748615073066,0.06871007,105230.0,105210.0,0.19593395]
[1748615073278,0.05310998,105230.0,105210.0,0.19593395]
[1748615073496,0.0305,105240.0,105220.0,0.09105395]
[1748615073725,0.23354844,105240.0,105220.0,0.09105395]
[1748615073948,0.0380068,105240.0,105220.0,0.09105395]
[1748615074402,0.0285048,105240.0,105220.0,0.09105395]
[1748615074624,0.02000299,105240.0,105220.0,0.09105395]
[1748615074851,0.002,105240.0,105220.0,0.09105395]
[1748615075074,0.002,105240.0,105230.0,0.01454085]
[1748615075297,0.002,105240.0,105230.0,0.66459897]
[1748615075546,0.002,105240.0,105230.0,1.42816333]
[1748615075761,0.002,105240.0,105230.0,1.73814899]
[1748615075982,0.002,105240.0,105230.0,2.4825127]
[1748615076213,0.001,105240.0,105230.0,2.4825127]
[1748615076441,0.001,105240.0,105230.0,6.1080907]
[1748615076655,0.05810495,105280.0,105260.0,0.01454085]
[1748615076906,0.04260486,105280.0,105260.0,0.2065148]
[1748615077115,0.0710992,105280.0,105260.0,0.2065148]
[1748615077327,0.04260486,105280.0,105260.0,0.2065148]
[1748615077539,0.05210324,105280.0,105260.0,0.1055948]
[1748615077750,0.0331072,105280.0,105260.0,0.2065148]
[1748615078198,0.0331072,105280.0,105270.0,0.09105395]
[1748615078408,0.0331072,105280.0,105270.0,0.1055948]
[1748615078829,0.0331072,105280.0,105270.0,0.2065148]
[1748615079250,0.0331072,105280.0,105270.0,1.32722929]
[1748615079469,0.0331072,105280.0,105270.0,1.33672804]
[1748615079682,0.0331072,105280.0,105270.0,1.71407371]
[1748615079891,0.0331072,105280.0,105270.0,1.42772333]
[1748615079892,0.0341072,105280.0,105270.0,1.42772333]
[1748615080110,0.0341072,105280.0,105270.0,1.83984333]
[1748615080323,0.0331072,105280.0,105270.0,4.22260318]
[1748615080530,0.0331072,105280.0,105270.0,3.99929129]
[1748615080749,0.0331072,105280.0,105270.0,4.0097349]
[1748615080960,0.0331072,105280.0,105270.0,3.03797833]
[1748615081178,0.0351072,105280.0,105270.0,1.68722933]
[1748615081383,0.0351072,105280.0,105270.0,2.28925698]
[1748615081596,0.0351072,105280.0,105270.0,2.30825547]
[1748615081806,0.0351072,105280.0,105270.0,2.32725324]
[1748615082027,0.02750753,105280.0,105270.0,2.32725324]
[1748615082229,0.02750753,105280.0,105270.0,1.91521324]
[1748615082436,0.0199133,105280.0,105270.0,1.66248533]
[1748615082649,0.0199133,105280.0,105270.0,1.73988133]
[1748615082853,0.01231907,105280.0,105270.0,1.84776333]
[1748615083055,0.01231907,105280.0,105270.0,2.242826]
[1748615083314,0.01231907,105280.0,105270.0,2.23332671]
[1748615083534,0.01231907,105280.0,105270.0,2.4518116]
[1748615083738,0.01231907,105280.0,105270.0,2.03027276]
[1748615083951,0.01231907,105280.0,105270.0,2.22374733]
[1748615084402,0.01231907,105280.0,105270.0,2.43273347]
[1748615084661,0.01231907,105280.0,105270.0,2.43273356]
[1748615084877,0.01231907,105280.0,105270.0,2.44223267]
[1748615085289,0.01231907,105280.0,105270.0,2.44223258]
[1748615085713,0.01231907,105280.0,105270.0,2.43273356]
[1748615086167,0.01231907,105280.0,105270.0,1.0553818]
[1748615086391,0.01231907,105280.0,105270.0,1.29616596]